bitfinex-derivatives/quotes_ETHF0:USTF0_20250411
["timestamp","ask_amount","ask_price","bid_price","bid_amount"]
[1744378144204,1.28378,1558.8,1558.7,2.05e-06]
[1744378144498,4.35548,1558.8,1558.7,2.05e-06]
[1744378144691,4.35548,1558.8,1558.7,1.28386205]
[1744378145089,4.35548,1558.8,1558.7,4.21766205]
[1744378145291,1.28378,1558.8,1558.7,4.21766205]
[1744378146298,1.28378,1558.8,1558.7,9.21766205]
[1744378146694,1.28378,1558.8,1558.7,4.21766205]
[1744378147699,1.28378,1558.8,1558.7,2.93380205]
[1744378147901,4.16498,1558.8,1558.7,2.93380205]
[1744378148091,4.16498,1558.8,1558.7,4.21766205]
[1744378148902,1.28378,1558.8,1558.7,4.21766205]
[1744378149599,1.29333205,1559.0,1558.9,1.2837]
[1744378150193,1.29333205,1559.0,1558.9,7.43]
[1744378150889,0.00963205,1559.0,1558.9,12.43]
[1744378151099,8.77900805,1559.4,1559.3,1.28337]
[1744378151907,1.28328,1559.4,1559.3,4.22187]
[1744378152099,1.28328,1559.4,1559.3,2.9385]
[1744378152298,4.24438,1559.4,1559.3,2.9385]
[1744378152600,1.28328,1559.4,1559.3,2.9385]
[1744378152798,1.28328,1559.4,1559.3,4.22187]
[1744378155007,3.20842,1559.3,1559.0,4.49139]
[1744378155310,4.32832,1559.2,1559.1,1.28353]
[1744378155497,3.0448,1559.2,1559.1,4.17963]
[1744378155698,1.28345,1559.2,1559.1,4.17963]
[1744378155900,1.28339,1559.3,1559.2,1.28338]
[1744378156100,1.28333,1559.4,1559.3,1.28337]
[1744378156606,1.28333,1559.4,1559.3,4.17947]
[1744378156799,4.22443,1559.4,1559.3,2.8961]
[1744378157201,1.28333,1559.4,1559.3,4.17947]
[1744378157610,1.28333,1559.4,1559.3,2.8961]
[1744378158105,1.28333,1559.4,1559.3,4.17947]
[1744378159609,1.28333,1559.4,1559.3,2.8961]
[1744378159807,1.28337,1559.3,1559.2,6.9112]
[1744378160113,4.30477,1559.3,1559.1,2.883]
[1744378160410,1.28345,1559.2,1559.1,2.883]
[1744378160712,3.0214,1559.2,1559.1,4.16645]
[1744378161015,4.30485,1559.2,1559.1,4.16645]
[1744378161505,3.0214,1559.2,1559.1,4.16645]
[1744378161711,4.30485,1559.2,1559.1,4.16645]
[1744378162706,1.28342,1559.3,1559.2,1.28345]
[1744378162909,1.28342,1559.3,1559.2,4.30945]
[1744378163712,4.26272,1559.3,1559.2,4.30945]
[1744378164814,4.26272,1559.3,1559.2,1.28345]
[1744378165014,1.28349,1559.2,1559.1,1.28345]
[1744378165206,2.8661,1559.2,1559.1,4.07945]
[1744378166415,4.14955,1559.2,1559.1,4.07945]
[1744378166622,1.28353,1559.1,1559.0,9.58395]
[1744378166916,4.14963,1559.1,1559.0,12.37995]
[1744378167914,4.14963,1559.1,1558.9,8.80453522]
[1744378167915,1.2837,1558.9,1558.8,3.2078]
[1744378168511,4.1902,1558.9,1558.8,3.2078]
[1744378169119,4.1902,1558.9,1558.8,4.49158]
[1744378169912,4.1902,1558.9,1558.8,1.28378]
[1744378171310,2.9065,1558.9,1558.8,4.49158]
[1744378171518,1.28359,1559.1,1559.0,1.28361]
[1744378171823,4.25049,1559.1,1559.0,1.28361]
[1744378173620,1.28361,1559.0,1558.9,6.79583]
[1744378173918,4.25051,1559.0,1558.9,6.79583]
[1744378174417,4.25051,1559.0,1558.9,4.28693]
[1744378174816,2.9669,1559.0,1558.9,4.28693]
[1744378175916,1.2836,1559.1,1559.0,1.28361]
[1744378176111,3.64522,1559.2,1559.1,1.28353]
[1744378176415,1.28345,1559.2,1559.1,3.72223]
[1744378176616,1.28345,1559.2,1559.1,3.72217]
[1744378177317,1.28345,1559.2,1559.1,6.60157]
[1744378177619,4.354,1559.3,1559.2,1.28345]
[1744378178121,4.354,1559.3,1559.2,4.16285]
[1744378178314,4.35397,1559.3,1559.2,6.74935]
[1744378179221,4.35397,1559.3,1559.2,1.28345]
[1744378180421,1.28345,1559.2,1559.1,3.72217]
[1744378180620,6.88465,1559.2,1559.1,2.4387]
[1744378180813,6.88465,1559.2,1559.1,3.72223]
[1744378181215,6.88465,1559.2,1559.1,2.4387]
[1744378181719,5.6012,1559.2,1559.0,1.28356]
[1744378181926,4.31993,1559.1,1559.0,1.28356]
[1744378182132,3.21768205,1559.5,1559.1,3.20883]
[1744378182427,3.21768205,1559.5,1559.3,1.2833]
[1744378182428,6.88452,1559.4,1559.3,1.2833]
[1744378182628,5.6012,1559.4,1559.3,6.8037]
[1744378182921,6.88448,1559.4,1559.3,6.8037]
[1744378185128,0.00963205,1559.5,1559.4,1.28328]
[1744378185320,1.29283205,1559.5,1559.4,1.28328]
[1744378185627,1.29283205,1559.5,1559.4,4.35908]
[1744378185827,0.00963205,1559.5,1559.4,4.35908]
[1744378186121,0.00963205,1559.5,1559.4,1.28328]
[1744378186122,1.29283205,1559.5,1559.4,1.28328]
[1744378186333,4.10183205,1559.5,1559.4,1.28328]
[1744378186625,0.00963205,1559.5,1559.4,4.12978]
[1744378187127,7.49572805,1559.8,1559.7,1.28304]
[1744378188133,1.28304,1559.7,1559.6,3.74024]
[1744378188331,4.09204,1559.7,1559.6,3.74987205]
[1744378188531,2.809,1559.7,1559.6,3.74987205]
[1744378188728,8.77874805,1559.8,1559.7,1.28304]
[1744378189031,10.30472805,1559.8,1559.7,4.12954]
[1744378189926,8.77867805,1559.8,1559.7,4.12954]
[1744378190127,7.49572805,1559.8,1559.7,4.12954]
[1744378190830,6.93341205,1559.9,1559.8,1.28295]
[1744378191129,6.93341205,1559.9,1559.8,4.11995]
[1744378191832,5.65053205,1559.9,1559.8,4.11995]
[1744378192535,3.06453205,1559.9,1559.8,4.11995]
[1744378192934,3.06453205,1559.9,1559.8,7.32775]
[1744378193233,0.00963205,1559.9,1559.8,7.32775]
[1744378193932,1.29250205,1559.9,1559.8,7.32775]
[1744378194133,4.22990205,1559.9,1559.8,7.32775]
[1744378195334,6.15425205,1559.9,1559.6,5.67463205]
[1744378195634,1.28304,1559.7,1559.6,9.79477205]
[1744378196628,2.9072,1559.8,1559.7,1.28304]
[1744378196932,0.00963205,1559.9,1559.8,1.28295]
[1744378197133,1.28295,1559.8,1559.7,1.28297]
[1744378197334,4.19015,1559.8,1559.7,4.12007]
[1744378198633,4.19015,1559.8,1559.7,1.28297]
[1744378199429,4.19015,1559.8,1559.6,8.42163205]
[1744378199630,9.75884,1559.7,1559.6,0.00963205]
[1744378199836,17.39116001,1559.7,1559.3,15.05523183]
[1744378200044,4.49108,1559.4,1559.3,6.96267263]
[1744378200231,1.28328,1559.4,1559.3,4.81643263]
[1744378200427,3.66648,1559.8,1559.3,11.23247263]
[1744378200628,0.00963205,1559.9,1559.8,1.28295]
[1744378200837,7.49572805,1560.3,1560.2,1.28263]
[1744378201129,9.93426258,1560.4,1560.3,1.28254]
[1744378201335,16.12507251,1560.8,1560.4,1.28246]
[1744378201632,16.12507251,1560.8,1560.4,3.2078]
[1744378201633,13.63882966,1560.5,1560.4,3.2078]
[1744378202135,13.63887966,1560.5,1560.3,2.99693205]
[1744378202432,12.35644966,1560.5,1560.4,4.49026]
[1744378202625,0.00963205,1560.6,1560.5,1.28238]
[1744378202827,14.84289251,1560.8,1560.7,1.28221]
[1744378203129,14.84289251,1560.8,1560.7,4.49001]
[1744378203328,14.84289251,1560.8,1560.5,3.2078]
[1744378203530,14.84289251,1560.8,1560.7,4.49001]
[1744378204130,19.84289251,1560.8,1560.5,3.2078]
[1744378204326,22.82469251,1560.8,1560.3,3.21743205]
[1744378204528,1.28246,1560.4,1560.3,0.00963205]
[1744378204830,1.2829,1559.9,1559.7,3.2078]
[1744378205227,1.28281,1560.0,1559.7,4.49077]
[1744378205425,2.5656,1560.3,1559.9,6.41492]
[1744378205723,3.2078,1560.6,1560.2,3.2078]
[1744378205930,0.00963205,1560.3,1560.2,1.28263]
[1744378206140,0.00963205,1560.3,1560.2,4.49043]
[1744378207636,1.29217205,1560.3,1560.2,3.2078]
[1744378207836,0.00963205,1560.3,1560.2,3.2078]
[1744378208036,0.00963205,1560.3,1560.1,2.3999]
[1744378208438,0.00963205,1560.3,1560.2,3.2078]
[1744378208634,0.00963205,1560.3,1560.2,4.49043]
[1744378210739,0.00963205,1560.3,1560.2,9.49043]
[1744378211438,0.00963205,1560.3,1560.2,4.49043]
[1744378212434,0.00963205,1560.3,1560.2,9.49043]
[1744378212630,2.5675,1561.0,1560.2,8.2078]
[1744378212934,2.8351,1561.1,1561.0,1.28192]
[1744378213338,2.5675,1561.2,1561.1,1.28189]
[1744378213527,1.28176,1561.3,1561.1,1.28186]
[1744378213727,0.00963,1561.3,1561.0,1.29154205]
[1744378213932,1.2914,1561.3,1561.0,0.00963205]
[1744378214234,4.182,1561.2,1561.0,0.00963205]
[1744378214440,4.18209,1561.1,1561.0,0.00963205]
[1744378214937,1.28189,1561.1,1561.0,0.00963205]
[1744378215144,1.28184,1561.2,1561.0,3.21743205]
[1744378215341,4.18204,1561.2,1561.0,3.21743205]
[1744378215536,4.18204,1561.2,1561.0,4.49939205]
[1744378215737,2.9002,1561.2,1561.0,3.21743205]
[1744378216240,3.89566,1561.3,1561.1,1.28185]
[1744378216436,2.61393,1561.3,1561.1,2.3986]
[1744378216641,1.28189,1561.1,1561.0,3.21743205]
[1744378216943,1.28189,1561.1,1561.0,0.00963205]
[1744378217439,3.81263,1561.2,1561.0,4.49936205]
[1744378217736,2.5308,1561.2,1561.0,3.21743205]
[1744378217941,4.04629,1561.1,1561.0,0.00963205]
[1744378218341,9.04629,1561.1,1561.0,0.00963205]
[1744378219046,4.04629,1561.1,1561.0,0.00963205]
[1744378219552,9.04629,1561.1,1561.0,0.00963205]
[1744378219741,4.04629,1561.1,1561.0,0.00963205]
[1744378220050,1.28232,1560.6,1560.4,3.2078]
[1744378220342,1.28238,1560.5,1560.4,3.2078]
[1744378220739,1.2826,1560.3,1560.2,3.2078]
[1744378220941,4.2488,1560.4,1560.2,3.2078]
[1744378221135,4.2488,1560.4,1560.3,1.28254]
[1744378221136,1.2825,1560.4,1560.3,1.28254]
[1744378221340,2.9663,1560.5,1560.4,1.28246]
[1744378221542,1.28254,1560.3,1560.2,3.21743205]
[1744378221837,4.49034,1560.3,1560.2,0.00963205]
[1744378222040,6.28254,1560.3,1560.2,2.05e-06]
[1744378222238,1.28254,1560.3,1560.2,1.28263205]
[1744378222443,2.9663,1560.4,1560.2,4.49037205]
[1744378222743,1.28254,1560.3,1560.2,2.05e-06]
[1744378222933,1.28254,1560.3,1560.2,1.28263205]
[1744378223136,1.28254,1560.3,1560.2,2.05e-06]
[1744378223447,5.4238,1560.4,1560.3,1.28254]
[1744378223641,0.00963205,1560.5,1560.4,1.28246]
[1744378223943,1.29201205,1560.5,1560.3,1.28248]
[1744378224143,1.29201205,1560.5,1560.2,3.20780205]
[1744378224144,1.28254,1560.3,1560.2,3.20780205]
[1744378224342,1.28254,1560.3,1560.2,2.05e-06]
[1744378224537,6.28254,1560.3,1560.2,2.05e-06]
[1744378224740,12.41464,1560.3,1560.2,2.05e-06]
[1744378224939,14.97904,1560.3,1560.2,2.05e-06]
[1744378225541,6.77124,1560.3,1560.2,2.05e-06]
[1744378226241,6.77124,1560.3,1560.2,3.20780205]
[1744378226438,3.74002,1560.4,1560.3,1.28254]
[1744378226644,3.74002,1560.4,1560.3,2.8759]
[1744378227147,3.74001,1560.4,1560.2,4.49043205]
[1744378227446,1.28254,1560.3,1560.2,2.05e-06]
[1744378227641,4.23384,1560.3,1560.2,2.05e-06]
[1744378227838,9.23384,1560.3,1560.2,2.05e-06]
[1744378228353,4.23384,1560.3,1560.2,2.05e-06]
[1744378228653,9.23384,1560.3,1560.2,2.05e-06]
[1744378229647,4.23384,1560.3,1560.2,2.05e-06]
[1744378229847,9.23384,1560.3,1560.2,2.05e-06]
[1744378230954,9.23384,1560.3,1559.6,2.5641]
[1744378230955,1.28334,1559.4,1559.0,52.23226587]
[1744378231150,3.2078,1560.0,1559.3,3.20842]
[1744378231351,4.15405,1559.9,1559.7,1.28302]
[1744378231551,4.15405,1559.9,1559.8,2.9299]
[1744378231956,1.28304,1559.7,1559.6,2.3502]
[1744378232157,1.28312,1559.6,1559.4,4.20115]
[1744378232451,5.5227,1559.8,1559.5,6.13533205]
[1744378232654,0.00963205,1560.0,1559.9,1.28287]
[1744378232847,0.00963205,1560.0,1559.9,4.49067]
[1744378233053,0.00963205,1560.0,1559.9,9.49067]
[1744378233260,0.00963205,1560.0,1559.9,12.40857]
[1744378233850,0.00963205,1560.0,1559.9,7.40857]
[1744378234865,0.00963205,1560.0,1559.9,6.1257]
[1744378235061,0.00963205,1560.0,1559.9,7.40857]
[1744378236260,0.00963205,1560.0,1559.9,12.40857]
[1744378237962,0.00963205,1560.0,1559.9,17.54257]
[1744378239357,2.05e-06,1560.0,1559.9,17.54257]
[1744378239558,1.28235,1560.6,1560.2,3.20646]
[1744378239866,1.2824,1560.5,1560.4,1.2824]
[1744378240162,1.2824,1560.5,1560.4,2.8612]
[1744378240364,1.2824,1560.5,1560.1,4.49048]
[1744378240365,1.28263,1560.2,1560.1,4.49048]
[1744378240668,1.28279,1560.0,1559.9,7.6707]
[1744378240864,4.08285,1560.1,1560.0,1.28279]
[1744378241056,1.28265,1560.2,1560.1,1.28266]
[1744378241759,1.29223205,1560.3,1560.2,1.28263]
[1744378241962,0.00963205,1560.3,1560.2,4.22393]
[1744378242365,0.00963205,1560.3,1560.2,6.60883]
[1744378243059,2.4409,1560.9,1560.7,1.28219]
[1744378243364,1.2822,1560.8,1560.7,4.48999]
[1744378243565,1.28198,1561.0,1560.7,6.41317]
[1744378243766,1.28198,1561.0,1560.9,4.48985]
[1744378243963,1.28198,1561.0,1560.9,3.2078]
[1744378244165,1.28198,1561.0,1560.9,4.48985]
[1744378244563,14.05645535,1561.1,1561.0,1.28197]
[1744378244762,1.28197,1561.0,1560.9,4.48977]
[1744378245469,1.28205,1560.9,1560.8,3.81551205]
[1744378245670,9.97441535,1561.1,1561.0,1.28197]
[1744378245873,9.97441535,1561.1,1561.0,4.48977]
[1744378246366,9.97441535,1561.1,1561.0,9.48977]
[1744378246566,14.84289251,1561.6,1561.2,3.20433]
[1744378246766,14.84289251,1561.6,1561.5,4.48936]
[1744378247370,1.28144,1561.7,1561.5,4.48936]
[1744378247672,1.28139,1561.7,1561.5,4.48929]
[1744378247873,11.27231607,1561.8,1561.6,1.28142]
[1744378248070,9.99096607,1561.8,1561.7,4.48919]
[1744378248273,11.27227607,1561.8,1561.7,3.2078]
[1744378248474,11.27227607,1561.8,1561.6,1.29103205]
[1744378248475,9.99096607,1561.8,1561.6,1.29103205]
[1744378248774,9.99096607,1561.8,1561.7,4.48919]
[1744378249277,9.99096607,1561.8,1561.7,9.89519]
[1744378249578,11.27227607,1561.8,1561.7,3.2078]
[1744378249778,9.99096607,1561.8,1561.7,4.48919]
[1744378250376,9.99096607,1561.8,1561.7,3.2078]
[1744378250570,11.27227607,1561.8,1561.7,3.2078]
[1744378250772,9.99096607,1561.8,1561.7,3.2078]
[1744378250976,14.08887607,1561.8,1561.7,3.2078]
[1744378251177,12.80756607,1561.8,1561.7,4.48919]
[1744378251471,1.28139,1561.7,1561.6,0.00963205]
[1744378251871,4.09799,1561.7,1561.6,0.00963205]
[1744378252072,9.09799,1561.7,1561.6,0.00963205]
[1744378253084,3.20779457,1562.8,1562.5,3.20185]
[1744378253378,3.20779457,1562.8,1562.7,3.2078]
[1744378253379,3.8486,1562.8,1562.7,3.2078]
[1744378253582,5.12909,1562.8,1562.7,3.2078]
[1744378253880,3.20779457,1562.7,1562.1,3.2078]
[1744378254081,1.28098,1562.2,1562.1,3.2078]
[1744378254586,3.20779457,1562.2,1562.1,3.2078]
[1744378254786,3.20779457,1562.2,1562.0,3.21739907]
[1744378254977,3.20779457,1562.1,1562.0,3.21739907]
[1744378255482,3.20779457,1562.1,1562.0,4.49854907]
[1744378255986,0.00948915,1562.3,1562.2,1.28098]
[1744378256184,0.00948915,1562.3,1562.2,4.48878]
[1744378256678,3.21728372,1562.3,1562.2,6.77508]
[1744378257085,3.21728372,1562.3,1562.2,4.48878]
[1744378257685,3.21728372,1562.3,1562.2,3.2078]
[1744378257874,4.49818372,1562.3,1562.2,3.2078]
[1744378258074,3.21728372,1562.3,1562.2,3.2078]
[1744378258383,3.21728372,1562.3,1562.0,0.00959907]
[1744378258384,1.28103,1562.2,1562.0,3.21739907]
[1744378258574,1.28107,1562.1,1562.0,0.00959907]
[1744378258776,6.83776457,1562.1,1562.0,0.00959907]
[1744378258981,14.65216457,1562.1,1562.0,0.00959907]
[1744378259172,14.00679,1562.1,1561.4,23.21419627]
[1744378259380,3.76468,1562.0,1561.8,1.28125]
[1744378259581,1.28124,1561.9,1561.7,1.28135]
[1744378259886,3.95574,1561.9,1561.7,3.92825]
[1744378260182,2.6745,1561.9,1561.7,2.6469]
[1744378260388,2.6745,1561.9,1561.8,7.13601]
[1744378260681,2.3489,1562.1,1562.0,1.28115]
[1744378260991,5.0234,1562.1,1561.9,2.6469]
[1744378261284,5.0234,1562.1,1562.0,1.28115]
[1744378261789,5.0234,1562.1,1562.0,4.48895]
[1744378262078,1.29045915,1562.3,1562.1,1.28101]
[1744378262279,0.00948915,1562.3,1562.2,4.48878]
[1744378262671,9.15e-06,1562.3,1562.2,18.00828]
[1744378263686,9.15e-06,1562.3,1562.2,7.35428]
[1744378264185,5.00000915,1562.3,1562.1,1.281]
[1744378264389,2.6237,1562.2,1562.1,1.28107]
[1744378264582,9.15e-06,1562.3,1562.2,1.28098]
[1744378264887,9.15e-06,1562.3,1562.2,4.48878]
[1744378265474,1.28095915,1562.3,1562.2,3.2078]
[1744378265680,9.15e-06,1562.3,1562.2,1.28098]
[1744378266083,2.62290915,1562.4,1562.3,1.2809]
[1744378266286,1.28036,1563.0,1562.6,3.20165]
[1744378266487,2.3815,1562.9,1562.8,1.28042]
[1744378267386,3.66195,1562.9,1562.7,5.97999907]
[1744378267689,2.3815,1562.9,1562.8,1.28049]
[1744378267988,0.00959906,1563.0,1562.9,1.28041]
[1744378268185,0.00959906,1563.0,1562.9,4.48821]
[1744378268386,0.00959906,1563.0,1562.9,1.28041]
[1744378268591,1.28992906,1563.0,1562.8,1.28043]
[1744378268790,0.00959906,1563.0,1562.9,1.28041]
[1744378269085,1.28992906,1563.0,1562.9,1.28041]
[1744378269287,1.28992906,1563.0,1562.8,1.28044]
[1744378269288,1.28042,1562.9,1562.8,1.28044]
[1744378269487,1.28049,1562.8,1562.7,0.00959907]
[1744378269687,6.40289,1562.7,1561.9,3.2078]
[1744378269886,6.40968,1562.5,1561.9,3.2078]
[1744378270087,1.28093,1562.3,1561.9,3.2078]
[1744378270290,1.28107,1562.1,1562.0,6.057]
[1744378270481,2.7467,1562.2,1562.0,3.2078]
[1744378270688,2.7467,1562.2,1562.0,1.28113]
[1744378270978,2.7467,1562.2,1561.9,0.00959907]
[1744378271200,2.7467,1562.2,1562.1,1.28107]
[1744378271490,0.00959907,1562.3,1562.1,1.28107]
[1744378271791,1.29049907,1562.3,1562.2,2.8144]
[1744378271985,0.00959907,1562.3,1562.2,7.30318]
[1744378272191,0.00959907,1562.3,1562.2,2.8144]
[1744378273192,0.00959907,1562.3,1562.0,3.2078]
[1744378274187,3.21739907,1562.3,1561.9,0.00959907]
[1744378274388,1.28115,1562.0,1561.9,0.00959907]
[1744378274780,1.28115,1562.0,1561.2,3.2044]
[1744378274781,15.57377,1562.0,1561.3,1.28166]
[1744378274984,3.2078,1561.8,1561.3,4.16856]
[1744378275187,8.468,1561.7,1561.3,2.8869]
[1744378275393,5.4679,1561.6,1561.0,4.6916]
[1744378275588,3.2078,1561.4,1560.8,14.89287148]
[1744378275792,3.2078,1561.1,1560.8,14.89287148]
[1744378275996,5.0751,1561.0,1560.9,0.00959907]
[1744378276196,8.2829,1561.0,1560.9,0.00959907]
[1744378276490,13.2829,1561.0,1560.9,0.00959907]
[1744378277190,13.2829,1561.0,1560.8,14.89287148]
[1744378277391,5.654,1560.9,1560.8,14.89287148]
[1744378277696,5.654,1560.9,1560.8,0.33757167]
[1744378277891,10.654,1560.9,1560.6,20.00639627]
[1744378278100,3.2078,1560.7,1560.6,20.00639627]
[1744378278291,8.8618,1560.9,1560.6,20.01599534]
[1744378278795,8.8618,1560.9,1560.6,22.76679534]
[1744378279296,8.8618,1560.9,1560.6,20.01599534]
[1744378279500,5.656,1560.8,1560.6,0.00959907]
[1744378279797,8.8638,1560.8,1560.6,0.00959907]
[1744378279997,5.4679,1561.0,1560.6,0.00959907]
[1744378280497,3.2078,1560.8,1560.6,0.00959907]
[1744378280996,8.2078,1560.8,1560.6,0.00959907]
[1744378281391,3.2078,1560.8,1560.6,0.00959907]
[1744378281588,8.2078,1560.8,1560.6,0.00959907]
[1744378281794,3.2078,1560.8,1560.6,0.00959907]
[1744378282291,3.2078,1561.0,1560.6,0.00959907]
[1744378282594,3.2078,1561.0,1560.6,2.76429907]
[1744378283591,3.2078,1560.7,1560.6,0.00959907]
[1744378283793,9.0458,1560.7,1560.6,0.00959907]
[1744378283993,14.0458,1560.7,1560.6,0.00959907]
[1744378284194,15.32801,1560.7,1560.6,0.00959907]
[1744378284400,15.32801,1560.7,1560.6,9.07e-06]
[1744378284693,15.96881,1560.7,1560.6,9.07e-06]
[1744378285303,3.20623,1560.4,1559.9,2.3166]
[1744378285495,1.28271,1560.1,1560.0,2.7158]
[1744378285687,3.20595,1560.5,1560.0,7.20631]
[1744378285999,3.20595,1560.5,1560.0,5.9236]
[1744378286197,1.28269,1560.2,1560.0,2.7158]
[1744378286399,1.28271,1560.1,1560.0,2.7158]
[1744378287395,1.28271,1560.1,1560.0,1.35033]
[1744378287601,1.28279,1560.0,1559.9,9.07e-06]
[1744378287800,4.49059,1560.0,1559.9,9.07e-06]
[1744378288096,9.49059,1560.0,1559.9,9.07e-06]
[1744378288298,1.28325,1559.5,1559.0,5.5362]
[1744378288499,6.41588,1559.5,1559.1,2.2428]
[1744378288697,1.28345,1559.2,1559.1,2.2428]
[1744378289400,0.00959907,1559.3,1559.1,2.2428]
[1744378289603,1.28345,1559.2,1559.1,2.2428]
[1744378289802,1.28353,1559.1,1559.0,0.00639944]
[1744378290192,1.28353,1559.1,1559.0,9.44e-06]
[1744378290704,7.12453,1559.1,1559.0,9.44e-06]
[1744378290996,1.28353,1559.1,1559.0,9.44e-06]
[1744378291391,1.28348,1559.2,1559.0,6.28358944]
[1744378291595,0.00959907,1559.3,1559.2,1.28345]
[1744378291891,3.20739,1559.8,1559.1,3.2078]
[1744378292094,1.28318,1559.6,1559.4,3.2078]
[1744378292402,1.28318,1559.6,1559.2,4.9435]
[1744378292403,1.28318,1559.6,1559.5,2.5833]
[1744378294996,1.28337,1559.3,1559.2,2.3602]
[1744378295197,1.28345,1559.2,1559.1,2.232]
[1744378295796,1.28353,1559.1,1559.0,9.44e-06]
[1744378296097,9.88883,1559.1,1559.0,9.44e-06]
[1744378296889,7.12653,1559.1,1559.0,9.44e-06]
[1744378297089,1.28353,1559.1,1559.0,9.44e-06]
[1744378297988,9.04583,1559.1,1559.0,9.44e-06]
[1744378298196,9.68743001,1559.1,1559.0,9.44e-06]
[1744378299794,1.28402,1558.5,1558.4,1.19869]
[1744378300104,1.28444,1558.0,1557.9,3.2078]
[1744378300404,1.28485,1557.5,1557.4,3.2078]
[1744378300704,6.021,1557.8,1557.3,3.2078]
[1744378301004,6.021,1557.8,1557.2,2.1953]
[1744378301005,1.29438113,1557.7,1557.5,4.49263]
[1744378301400,1.28477,1557.6,1557.5,3.2078]
[1744378302203,1.28485,1557.5,1557.4,3.21743113]
[1744378302393,1.28485,1557.5,1557.4,0.00963113]
[1744378303307,7.30585,1557.5,1557.4,0.00963113]
[1744378303707,10.01045,1557.5,1557.4,0.00963113]
[1744378304108,7.30585,1557.5,1557.4,0.00963113]
[1744378304603,12.30585,1557.5,1557.4,1.13e-06]
[1744378304806,12.30585,1557.5,1556.9,2.6267]
[1744378304807,1.28526,1557.0,1556.9,2.6267]
[1744378305007,1.28553,1556.7,1556.6,3.2078]
[1744378305198,7.30858,1556.7,1556.5,5.5861]
[1744378305400,6.023,1556.7,1556.5,6.87174]
[1744378305706,7.30832,1557.0,1556.7,1.28548]
[1744378305902,5.65976409,1557.0,1556.8,3.2078]
[1744378306105,5.66939522,1557.0,1556.6,3.2078]
[1744378306301,8.88261522,1557.0,1556.6,3.2078]
[1744378306505,5.66939522,1557.0,1556.6,3.2078]
[1744378306702,1.28551,1556.7,1556.6,3.2078]
[1744378307205,14.79556522,1557.0,1556.6,3.2078]
[1744378307404,1.28551,1556.7,1556.6,3.2078]
[1744378307605,7.31051,1556.7,1556.6,3.2078]
[1744378308311,7.31051,1556.7,1556.6,2.8232]
[1744378308609,6.025,1556.7,1556.6,6.031]
[1744378308810,7.31051,1556.7,1556.6,6.031]
[1744378309010,1.28549,1556.8,1556.6,6.031]
[1744378309208,1.28549,1556.8,1556.7,2.8232]
[1744378309716,0.00963113,1557.0,1556.7,2.8232]
[1744378310014,1.28536,1556.9,1556.8,3.2078]
[1744378310209,1.28543,1556.8,1556.7,2.8232]
[1744378310509,1.28567,1556.5,1556.4,3.2078]
[1744378310706,1.28591,1556.3,1556.2,3.2078]
[1744378311313,5.96881,1556.7,1556.2,5.8125]
[1744378311610,1.28567,1556.5,1556.4,3.2078]
[1744378312008,0.00963113,1557.0,1556.4,11.42213]
[1744378312206,0.00963113,1557.0,1556.7,3.2078]
[1744378312401,1.29489113,1557.0,1556.9,3.2078]
[1744378312603,0.00963113,1557.0,1556.9,6.79374]
[1744378312804,1.29489113,1557.0,1556.9,5.5084]
[1744378313508,1.29489113,1557.0,1556.9,8.1131]
[1744378314708,1.29489113,1557.0,1556.9,4.9053]
[1744378315109,1.29489113,1557.0,1556.5,5.45376]
[1744378315110,3.22282113,1557.0,1556.5,3.52524]
[1744378315416,1.28567,1556.5,1556.4,2.2092]
[1744378315611,1.286,1556.2,1556.0,6.74632]
[1744378315817,9.24223,1556.5,1556.1,1.28595]
[1744378316018,1.28588,1556.3,1556.1,1.28595]
[1744378316220,1.28592,1556.2,1556.0,8.95552]
[1744378316510,1.28595,1556.2,1556.0,7.6695]
[1744378316909,6.028,1556.5,1556.1,3.21502]
[1744378317108,3.2078,1556.7,1556.3,3.2078]
[1744378317312,1.28562,1556.6,1556.5,1.28566]
[1744378317509,1.28562,1556.6,1556.5,4.49346]
[1744378317818,1.28562,1556.6,1556.5,3.2078]
[1744378318021,1.28583,1556.4,1556.3,3.2078]
[1744378318314,3.21409,1556.6,1556.3,3.2078]
[1744378318615,1.28576,1556.4,1556.3,3.2078]
[1744378319217,1.28592,1556.2,1556.1,3.2078]
[1744378319517,6.029,1556.5,1556.3,1.28582]
[1744378319716,7.31467,1556.5,1556.4,3.2078]
[1744378320305,1.28584,1556.3,1556.2,5.9786]
[1744378320512,8.91093571,1556.5,1556.2,7.26452]
[1744378320716,1.28579,1556.4,1556.3,4.4936]
[1744378320916,8.91097571,1556.5,1556.2,2.7708]
[1744378321119,1.28584,1556.3,1556.2,2.7708]
[1744378321508,1.28581,1556.4,1556.2,2.7708]
[1744378321713,11.86089,1556.8,1556.3,3.2078]
[1744378321917,1.28576,1556.5,1556.4,3.2078]
[1744378322617,3.21443,1556.4,1556.2,3.2078]
[1744378322821,3.2078,1556.3,1556.0,2.2092]
[1744378323012,1.28617,1555.9,1555.8,3.2078]
[1744378323324,0.00963113,1556.0,1555.8,3.2078]
[1744378323617,1.28617,1555.9,1555.8,3.2078]
[1744378323823,1.28625,1555.8,1555.7,2.3925]
[1744378324016,1.28623,1555.9,1555.8,1.28623]
[1744378324318,1.28625,1555.8,1555.7,6.88658]
[1744378324520,1.28625,1555.8,1555.7,5.6003]
[1744378324711,1.28625,1555.8,1555.7,6.88664]
[1744378324912,0.00963113,1556.0,1555.9,1.28617]
[1744378325211,1.28602,1556.1,1556.0,1.28602]
[1744378325413,1.2859,1556.3,1556.2,1.28591]
[1744378325618,1.2859,1556.3,1556.2,3.2078]
[1744378326215,1.28592,1556.2,1556.1,2.23103113]
[1744378326420,1.28589,1556.3,1556.2,1.28587]
[1744378326619,1.28589,1556.3,1556.2,4.49372]
[1744378326815,0.00963113,1556.4,1556.2,8.2078]
[1744378327029,3.21289,1557.2,1556.8,1.28536]
[1744378327322,1.2853,1557.0,1556.9,1.28532]